Cogmind - Beta 16.1 @@@ ROGUE MODE // 2026.04.12 @ 19:42:11 Player: chebyrekser Result: Destroyed by H-77 Assassin with High-powered Shotgun Performance ------------- Evolutions (5) 2500 Regions Visited (16) 3200 Robots Destroyed (141) 705 Value Destroyed (4245) 4245 Prototype IDs (27) 540 Alien Tech Used (3) 600 Bonus (-641) -641 TOTAL SCORE: 11149 Bonus ------- Follower Combat Kills 828 Registered with UFD 300 Met Optimus in HQ 500 Met Data Miner 300 Met Zhirov 300 Friendly Fire -2869 Cogmind --------- Core Integrity 0/1000 Matter 255/300 Energy 76/100 System Corruption 23% Temperature Cool (0) Movement Core (500) Ox9 Location -4/Proximity Caves Parts ------- > --- POWER (1) -------- (None) > --- PROPULSION (6) --- Cooled Gravmag System > --- UTILITY (8) ------ Large Storage Unit Core Analyzer > --- WEAPON (2) ------- Compact Ion Cannon Companion Sword > --- INVENTORY (15) --- Neutrino Core Antimatter Reactor Improved Weapon Cycler Enhanced Scrap Shield Advanced Hacking Suite Quantum Rifle Compact Ion Cannon Advanced Plasma Cannon Compact Gauss Rifle Peak State ------------ > --- POWER ------------ Fission Core > --- PROPULSION ------- Improved Treads Improved Medium Treads Titanium Leg Cargo Legs Antigrav System > --- UTILITY ---------- Advanced Heat Sink Large Storage Unit Advanced Sensor Array Experimental Signal Interpreter Makeshift Transmission Jammer Enhanced Scrap Shield Hacking Suite > --- WEAPON ----------- Compact Ion Cannon Companion Sword > --- INVENTORY -------- Neutrino Core Flexi-carbon Leg Armored Leg Core Analyzer Improved Weapon Cycler Improved Weapon Cycler Makeshift Transmission Jammer Improved Medium Armor Plating Makeshift Heavy Armor Plating Dimensional Node Initializer Compact Ion Cannon Advanced Plasma Cannon Compact Gauss Rifle Improved Plasma Cutter [Rating: 97] Favorites ----------- Power Ion Engine Engine Ion Engine Power Core Fission Core Reactor Antimatter Reactor Propulsion Light Treads Treads Light Treads Leg Flexi-carbon Leg Wheel Compact Wheel Hover Unit Antigrav System Utility Huge Storage Unit Device Advanced Sensor Array Storage Huge Storage Unit Processor Experimental Signal Interpreter Hackware Hacking Suite Protection Medium Armor Plating Weapon Light EM Pulse Cannon Energy Gun EM Shotgun Energy Cannon Light EM Pulse Cannon Ballistic Gun Heavy Assault Rifle Launcher Heavy Missile Launcher Special Weapon Mining Laser Slashing Weapon Companion Sword Build | -11 -10 -10 -8 -8 -6 -6 -6 -6 -6 -6 -5 -5 -5 -5 -5 -4 ------- Run | Yrd Mat Sub Rec Scr Fac Was Fac Low Low Dat Pro Fac Upp Upp Zhi Pro Slots Evolved 10 | . . . . . 8 . . . . . . 2 . . . . Power . | . . . . . . . . . . . . . . . . . Propulsion 4 | . . . . . 4 . . . . . . . . . . . Utility 6 | . . . . . 4 . . . . . . 2 . . . . Weapon . | . . . . . . . . . . . . . . . . . Parts Attached 119 | 8 8 9 5 15 11 18 6 2 1 . 2 8 3 5 5 13 Power 10 | 1 . 1 1 2 . 2 . . . . . . 1 1 . 1 Engine 5 | 1 . 1 1 2 . . . . . . . . . . . . Core 4 | . . . . . . 2 . . . . . . 1 1 . . Reactor 1 | . . . . . . . . . . . . . . . . 1 Propulsion 33 | 2 2 2 1 5 2 5 . . . . 1 4 . 2 1 6 Treads 16 | 2 . 1 1 3 2 1 . . . . . 2 . 1 . 3 Leg 10 | . . . . . . 4 . . . . 1 1 . 1 . 3 Wheel 5 | . 2 1 . 2 . . . . . . . . . . . . Hover 2 | . . . . . . . . . . . . 1 . . 1 . Flight . | . . . . . . . . . . . . . . . . . Utility 44 | 3 1 3 1 1 8 7 5 1 1 . . 4 1 1 3 4 Device 22 | 2 . 1 . . 6 2 3 1 1 . . 1 1 1 1 2 Storage 5 | 1 1 . . 1 . . 1 . . . . . . . 1 . Processor 3 | . . . . . 1 . 1 . . . . . . . . 1 Hackware 1 | . . . . . . . . . . . . 1 . . . . Protection 13 | . . 2 1 . 1 5 . . . . . 2 . . 1 1 Artifact . | . . . . . . . . . . . . . . . . . Weapon 32 | 2 5 3 2 7 1 4 1 1 . . 1 . 1 1 1 2 Energy Gun 5 | 1 2 . . . . 2 . . . . . . . . . . Energy Cannon 12 | . 2 3 1 1 . . . 1 . . . . 1 1 . 2 Ballistic Gun 6 | 1 . . 1 4 . . . . . . . . . . . . Ballistic Cannon . | . . . . . . . . . . . . . . . . . Launcher 5 | . . . . 1 . 2 1 . . . 1 . . . . . Special Weapon 3 | . 1 . . . 1 . . . . . . . . . 1 . Impact Weapon . | . . . . . . . . . . . . . . . . . Slashing Weapon 1 | . . . . 1 . . . . . . . . . . . . Piercing Weapon . | . . . . . . . . . . . . . . . . . Special Melee Weapon . | . . . . . . . . . . . . . . . . . Unidentified Prototypes 13 | . . . . 2 . 2 . 1 . . . 1 . . 5 2 Corrupted Parts 4 | . . . 1 3 . . . . . . . . . . . . System Corruption 28 | . . . 10 18 . . . . . . . . . . . . Parts Lost 45 | . . 3 2 1 2 5 . . . . . 10 3 . . 19 Power 6 | . . . 1 1 . 1 . . . . . . 1 . . 2 Propulsion 18 | . . . . . 2 2 . . . . . 4 1 . . 9 Utility 16 | . . 1 . . . 1 . . . . . 6 . . . 8 Weapon 5 | . . 2 1 . . 1 . . . . . . 1 . . . Highest Loss Streak 9 | . . 3 1 1 1 4 . . . . . 5 3 . . 9 To Critical Strikes 1 | . . . . . . 1 . . . . . . . . . . Average Backups 16 | 4 17 21 18 18 16 6 11 13 14 14 13 13 12 13 14 12 Power 1 | . 1 1 . 1 1 . 1 1 1 1 1 1 1 1 1 1 Propulsion 3 | 2 3 4 5 4 1 . 1 3 4 4 4 3 2 2 2 2 Utility 6 | . 7 10 8 7 7 2 3 3 4 4 4 3 4 5 5 3 Weapon 4 | 1 5 4 3 4 5 3 5 5 5 5 4 5 3 3 4 4 Tool/Special . | . . . . . . . . . . . . . . . . . Unused Backups 51 | . 9 4 1 10 6 10 2 1 . . . 2 . . 2 4 Power 5 | . . . . . 1 1 1 . . . . . . . . 2 Propulsion 7 | . 4 1 1 . 1 . . . . . . . . . . . Utility 25 | . 4 2 . 7 . 8 1 . . . . . . . 2 1 Weapon 12 | . 1 1 . 2 4 . . 1 . . . 2 . . . 1 Tool/Special 2 | . . . . 1 . 1 . . . . . . . . . . Average Slot Usage (%) 88 | . 98 99 99 81 84 50 88 87 88 88 88 80 78 84 86 68 Engine 9 | . 14 14 13 13 6 . . . . . . . . . . . Core 1 | . . . . . . 1 5 5 5 5 5 5 4 5 5 2 Treads 16 | . 16 20 27 20 29 5 5 4 5 5 5 5 5 9 11 9 Leg 5 | . . . . . . 8 23 23 23 23 23 18 11 13 17 14 Wheel 4 | . 10 7 . 6 . . . . . . . . . . . . Device 8 | . 12 6 . . 18 11 18 16 17 17 17 13 17 16 14 8 Storage 10 | . 14 14 14 14 6 . 3 5 5 5 5 5 5 5 5 5 Processor 2 | . . . . . 5 5 7 11 11 11 11 7 5 5 5 5 Protection 8 | . . 7 14 14 6 6 14 11 11 11 11 8 5 5 6 7 Energy Gun 1 | . 9 . . . . 3 . . . . . . . . . . Energy Cannon 9 | . 12 23 27 . . . . . . . . . . 2 . . Ballistic Gun 2 | . 3 . . 10 1 . . . . . . . . . . . Special Weapon 1 | . 2 4 . . 1 . . . . . . . . . 4 . Slashing Weapon 1 | . . . . . 6 2 5 5 5 5 5 5 5 5 5 5 Peak Build Rating 97 | 7 12 20 20 37 54 86 87 90 85 85 88 91 95 97 97 89 Average Rating 37 | 5 10 15 19 17 50 52 84 83 84 85 85 82 86 92 92 71 On Entrance 59 | . 7 12 20 16 36 52 86 84 84 85 85 85 91 87 94 89 Avg Prop Armor Cover (%) 7 | . 11 10 11 9 22 7 4 5 4 4 4 5 6 7 6 8 Naked Turns . | . . . . . . . . . . . . . . . . . Heaviest Build 108 | 15 94 104 108 101 77 75 75 72 76 76 82 77 55 61 63 71 Greatest Support 115 | 40 40 40 40 40 100 115 115 115 115 115 115 115 92 92 92 95 Greatest Overweight (x) 10 | . 9 6 5 6 2 1 . 3 . . . 1 . . . 10 Average Overweight (x) 1 | . 5 4 2 2 . . . . . . . . . . . . Largest Inventory Capacity 25 | 8 25 25 25 25 20 20 15 15 15 15 15 15 15 15 15 15 Average Capacity 20 | 7 21 25 25 23 20 6 12 15 15 15 15 15 15 15 15 15 Most Carried 25 | 7 25 25 25 25 20 20 15 15 15 15 15 15 15 15 15 15 Average Carried 19 | 4 18 24 24 21 18 6 11 14 15 15 14 14 12 14 14 13 Final Capacity 25 | 8 25 25 25 20 20 5 15 15 15 15 15 15 15 15 15 15 Final Carried 25 | 7 25 25 25 20 20 5 15 15 15 15 15 14 14 15 15 10 Class Distribution -------------------- 71% | Mutant 15% | Scavenger-Mutant 8% | Scavenger-Assassin 4% | Derelict-Mutant Dominant Class ---------------- Mutant | -10/Materials Mutant | -10/Subcaves Mutant | -8/Recycling Mutant | -8/Scraptown Scavenger-Mutant | -6/Factory Mutant | -6/Waste Scavenger-Mutant | -6/Factory Scavenger-Assassin | -6/Lower Caves Scavenger-Assassin | -6/Lower Caves Scavenger-Mutant | -6/Data Miner Scavenger-Assassin | -5/Proximity Caves Scavenger-Mutant | -5/Factory Mutant | -5/Upper Caves Mutant | -5/Upper Caves Derelict-Mutant | -5/Zhirov Derelict-Mutant | -4/Proximity Caves Resources | -11 -10 -10 -8 -8 -6 -6 -6 -6 -6 -6 -5 -5 -5 -5 -5 -4 ----------- Run | Yrd Mat Sub Rec Scr Fac Was Fac Low Low Dat Pro Fac Upp Upp Zhi Pro Matter Collected 4019 | 336 657 516 54 308 226 779 92 113 38 . 113 167 154 162 58 246 Remotely . | . . . . . . . . . . . . . . . . . Salvage Created 9239 | 192 900 752 502 463 331 1973 1099 194 210 . 85 658 586 88 455 751 Parts 336 | 13 42 34 28 24 23 32 45 4 6 . 2 37 9 4 4 29 Haulers Intercepted 4 | . 2 . . . . . 2 . . . . . . . . . Recyclers Shooed 3 | . 1 . 1 . . . 1 . . . . . . . . . Parts Field Recycled . | . . . . . . . . . . . . . . . . . Retrieved Matter . | . . . . . . . . . . . . . . . . . Parts Self-Destructed 81 | . . 19 . . . . . 24 . . 9 . 2 3 3 21 Prevented 3 | . . 3 . . . . . . . . . . . . . . Parts Restored . | . . . . . . . . . . . . . . . . . Kills | -11 -10 -10 -8 -8 -6 -6 -6 -6 -6 -6 -5 -5 -5 -5 -5 -4 ------- Run | Yrd Mat Sub Rec Scr Fac Was Fac Low Low Dat Pro Fac Upp Upp Zhi Pro Combat Hostiles Destroyed 84 | . 11 14 3 8 5 6 2 1 4 . 2 10 3 1 . 14 Melee 33 | . . . . 1 4 . 2 1 4 . . 9 . 1 . 11 Guns 12 | . 7 . . . 1 3 . . . . . 1 . . . . Cannons 19 | . 2 10 2 1 . . . . . . . . 2 . . 2 AOE 15 | . 2 . . 6 . 3 . . . . 2 . 1 . . 1 Classes Destroyed 23 | 3 5 3 1 5 1 2 1 . . . . 1 . . . 1 Worker 8 | 1 1 . . . 3 . 3 . . . . . . . . . Builder 3 | . . . . . . . 3 . . . . . . . . . Tunneler 7 | 6 . . . . . . . . . . . 1 . . . . Hauler 4 | . 2 . . . . . 2 . . . . . . . . . Recycler 16 | 1 4 . 5 . . . 5 . . . . 1 . . . . Operator 2 | . 2 . . . . . . . . . . . . . . . Turret 2 | . . 2 . . . . . . . . . . . . . . Watcher 3 | . 3 . . . . . . . . . . . . . . . Swarmer 12 | . 3 1 . . . . . . . . . 4 . . . 4 Grunt 19 | . 8 . . . . . . 1 . . 2 . 3 . . 5 Brawler 1 | . . . . . . . . . . . . . . . . 1 Duelist 1 | . . . . . . . . . . . . . . . . 1 Protector 1 | . . . 1 . . . . . . . . . . . . . Sentry 10 | . . 1 2 . 2 . 1 . . . . 1 . 1 . 2 Hunter 2 | . . . . . . . . . . . . 1 . . . 1 Programmer 8 | . . . . . 3 . 1 . . . . 4 . . . . Compactor 6 | . . . . . . 6 . . . . . . . . . . Subdweller 12 | . . 12 . . . . . . . . . . . . . . Explorer 2 | . . . . 2 . . . . . . . . . . . . Ranger 1 | . . . . 1 . . . . . . . . . . . . Guru 1 | . . . . 1 . . . . . . . . . . . . Scrapper 3 | . . . . 3 . . . . . . . . . . . . Packrat 6 | . . . . . . . . 2 1 . . . 3 . . . Wasp 9 | . . . . . . 6 . . 3 . . . . . . . Thug 3 | . . . . . . 2 . . 1 . . . . . . . Savage 3 | . . . . 1 . 2 . . . . . . . . . . Martyr 2 | . . . . . . 2 . . . . . . . . . . Best Kill Streak 6 | 2 3 2 4 6 1 3 4 1 4 . 2 4 2 1 . 4 Combat Bots Only 6 | . 3 2 1 6 1 3 1 1 4 . 2 3 2 1 . 4 Max Kills in Single Turn 3 | 1 2 1 1 3 1 1 1 1 1 . 2 1 1 1 . 1 Gunslinging . | . . . . . . . . . . . . . . . . . Exploded 3 | . 1 . . 3 . 1 . . . . 2 . 1 . . 1 Melee 1 | . . . . 1 1 . 1 1 1 . . 1 . 1 . 1 Uniques/NPCs Destroyed . | . . . . . . . . . . . . . . . . . Combat | -11 -10 -10 -8 -8 -6 -6 -6 -6 -6 -6 -5 -5 -5 -5 -5 -4 -------- Run | Yrd Mat Sub Rec Scr Fac Was Fac Low Low Dat Pro Fac Upp Upp Zhi Pro Hostile Shots Fired 806 | . 44 91 10 25 110 5 2 14 16 . 19 104 57 4 . 305 Missed 244 | . 12 30 4 10 40 2 1 4 6 . 7 21 15 2 . 90 Hits 562 | . 32 61 6 15 70 3 1 10 10 . 12 83 42 2 . 215 Melee 16 | . . . . . . 3 . 2 . . . . . . . 11 Projectile 546 | . 32 61 6 15 70 . 1 8 10 . 12 83 42 2 . 204 Critical Strikes 17 | . . . . . 1 3 . 1 . . 1 5 1 1 . 4 Part Disruptions 2 | . . . . . 1 . . . . . . . . 1 . . Damage Taken 9970 | . 382 890 121 343 695 247 15 188 112 . 249 2018 768 100 5 3837 Core 1282 | . 50 67 15 63 71 20 . 27 13 . . 245 39 19 5 648 Absorbed by Shields 323 | . . . . . 138 . . 124 48 . 13 . . . . . Regen/Repaired (Parts) 402 | . 211 . . . . 76 . . . . 44 71 . . . . Core Remaining (%) 68 | 100 . . . 22 . . . . . . 84 . . . . . Volleys Fired 402 | 22 65 75 21 26 4 57 . . . . 3 2 25 61 . 41 Largest 2 | 2 2 2 2 2 1 1 . . . . 1 1 1 1 . 1 Hottest 112 | 70 112 112 112 90 90 80 . . . . 36 30 90 90 . 98 Shots Fired 502 | 44 93 123 28 27 4 58 . . . . 3 2 23 58 . 39 Gun 182 | 44 71 . . 7 3 43 . . . . . 2 . . . 12 Cannon 271 | . 19 103 28 16 1 . . . . . . . 19 58 . 27 Launcher 26 | . . . . 4 . 15 . . . . 3 . 4 . . . Special 23 | . 3 20 . . . . . . . . . . . . . . Kinetic 75 | 22 29 . . 7 3 . . . . . . 2 . . . 12 Thermal 219 | 22 5 20 8 16 1 43 . . . . . . 19 58 . 27 Explosive 26 | . . . . 4 . 15 . . . . 3 . 4 . . . Electromagnetic 182 | . 59 103 20 . . . . . . . . . . . . . Robot Hit Streak 29 | 8 11 29 11 2 4 10 . . . . 2 1 4 . . 3 Robot Miss Streak 8 | 2 6 2 1 1 . 5 . . . . 2 1 3 . . 8 Penetration Max 1 | . . . . . . . . . . . . . . . . 1 Secondary Targets . | . . . . . . . . . . . . . . . . . Shots Hit Robots 480 | 26 56 77 22 9 24 76 24 6 11 . 2 41 31 2 13 60 Core Hits 215 | 9 34 23 9 9 7 36 12 2 4 . 7 14 18 2 5 24 Critical Kills . | . . . . . . . . . . . . . . . . . Critical Parts Destroyed . | . . . . . . . . . . . . . . . . . Critical Strikes 11 | 4 . 1 . . . . . . . . . 4 . . . 2 Burn 4 | 4 . . . . . . . . . . . . . . . . Corrupt 1 | . . 1 . . . . . . . . . . . . . . Melee Attacks 360 | . . . . 8 47 25 41 34 14 . 6 70 19 26 15 55 Impact . | . . . . . . . . . . . . . . . . . Slashing 360 | . . . . 8 47 25 41 34 14 . 6 70 19 26 15 55 Piercing . | . . . . . . . . . . . . . . . . . Sneak Attacks 62 | . . . . . 4 23 18 3 2 . . 6 4 . . 2 Combat Hostiles 3 | . . . . . . . . 1 . . . 2 . . . . Follow-up Attacks 1 | . . . . . . . . . . . . 1 . . . . Damage Inflicted 20321 | 332 1183 1474 543 740 1020 5201 1625 319 572 . 378 1811 2000 90 1011 2022 Guns 2292 | 332 639 . . 22 83 1066 . . . . . 21 . . . 129 Cannons 2992 | . 393 1474 507 33 . . . . . . . . 307 . . 278 Explosions 3940 | . 151 . 36 513 . 2446 . . . . 378 . 416 . . . Melee 11094 | . . . . 172 937 1689 1625 319 572 . . 1790 1277 90 1011 1612 Ramming 3 | . . . . . . . . . . . . . . . . 3 Kinetic 609 | 171 183 . . 22 83 . . . . . . 21 . . . 129 Thermal 2178 | 161 163 . 170 33 . 1066 . . . . . . 307 . . 278 Explosive 3753 | . . . . 513 . 2446 . . . . 378 . 416 . . . Electromagnetic 2684 | . 837 1474 373 . . . . . . . . . . . . . Impact . | . . . . . . . . . . . . . . . . . Slashing 11094 | . . . . 172 937 1689 1625 319 572 . . 1790 1277 90 1011 1612 Piercing . | . . . . . . . . . . . . . . . . . Highest Corruption 23 | . . . 10 10 3 3 8 8 8 8 8 12 12 12 12 23 Average Corruption 8 | . . . 10 1 1 3 4 8 8 8 8 9 12 12 12 17 Corruption Purged . | . . . . . . . . . . . . . . . . . Corruption Blocked . | . . . . . . . . . . . . . . . . . Effects 264 | . . . 2 3 4 28 18 18 16 3 18 22 35 50 8 39 Message Errors 59 | . . . . 1 . 7 3 8 7 1 6 3 8 7 2 6 Matter Fused 56 | . . . 1 . 2 8 3 3 1 . 4 5 6 12 2 9 Heat Flow Errors 34 | . . . . . 1 1 2 3 2 1 2 4 4 10 . 4 Energy Discharges 41 | . . . . 1 . 4 4 1 2 1 1 5 5 4 3 10 Parts Rejected 3 | . . . . . . 2 . . . . 1 . . . . . Parts Fused 6 | . . . . 1 . . 1 . . . . . 2 2 . . Data Loss (minor) 33 | . . . . . 1 2 1 2 2 . 4 4 4 9 1 3 Data Loss (major) 19 | . . . 1 . . 3 3 . 1 . . 1 4 2 . 4 Misfires 1 | . . . . . . 1 . . . . . . . . . . Alerts 5 | . . . . . . . 1 1 1 . . . . 1 . 1 Weapon Failures 7 | . . . . . . . . . . . . . 2 3 . 2 Overload Shots . | . . . . . . . . . . . . . . . . . Overflow Damage 1841 | . 8 8 2 24 156 165 341 87 180 . . 239 441 . 127 63 Projectiles 60 | . 8 8 2 . . . . . . . . . 42 . . . Explosions 11 | . . . . . . 11 . . . . . . . . . . Melee 1770 | . . . . 24 156 154 341 87 180 . . 239 399 . 127 63 Knockbacks . | . . . . . . . . . . . . . . . . . Impact . | . . . . . . . . . . . . . . . . . Kinetic . | . . . . . . . . . . . . . . . . . Secondary . | . . . . . . . . . . . . . . . . . Self-Inflicted Damage 291 | . 54 . 29 91 . 117 . . . . . . . . . . Shots 7 | . 1 . 1 2 . 3 . . . . . . . . . . Rammed . | . . . . . . . . . . . . . . . . . Targets Rammed 1 | . . . . . . . . . . . . . . . . 1 Kicked 1 | . . . . . . . . . . . . . . . . 1 Crushed . | . . . . . . . . . . . . . . . . . Highest Temperature 431 | 90 159 36 235 300 258 431 177 251 174 235 165 234 332 234 . 221 Average Temperature 70 | 30 40 11 88 98 108 37 90 103 79 121 66 105 145 107 . 62 Received Heat Transfer 1452 | . 111 300 18 78 66 . . 42 8 . 108 45 342 9 . 325 Effects 2 | . . . 2 . . . . . . . . . . . . . Energy Bleed 2 | . . . 2 . . . . . . . . . . . . . Siege Activations . | . . . . . . . . . . . . . . . . . Martial Activations . | . . . . . . . . . . . . . . . . . Shielding Activations . | . . . . . . . . . . . . . . . . . Robots Disrupted 2 | . . 1 . . . . . . . . . . . . . 1 Combat Hostiles 2 | . . 1 . . . . . . . . . . . . . 1 Robots Corrupted 5 | . . 4 1 . . . . . . . . . . . . . Combat Hostiles 5 | . . 4 1 . . . . . . . . . . . . . Parts Fried 21 | . 1 19 1 . . . . . . . . . . . . . Impact Corruptions . | . . . . . . . . . . . . . . . . . Robots Melted . | . . . . . . . . . . . . . . . . . Combat Hostiles . | . . . . . . . . . . . . . . . . . Parts Melted 5 | 3 . . . 2 . . . . . . . . . . . . Heat Transferred 4417 | 777 137 . 226 50 . 2450 . . . . . . 407 . . 370 Parts Sabotaged . | . . . . . . . . . . . . . . . . . Parts Stolen . | . . . . . . . . . . . . . . . . . Parts Stripped . | . . . . . . . . . . . . . . . . . Power Chain Reactions 4 | . 3 . 1 . . . . . . . . . . . . . Alert | -11 -10 -10 -8 -8 -6 -6 -6 -6 -6 -6 -5 -5 -5 -5 -5 -4 ------- Run | Yrd Mat Sub Rec Scr Fac Was Fac Low Low Dat Pro Fac Upp Upp Zhi Pro Maximum Alert Level 1 | . . . . . . . 1 . . . . . . . . . Low Security (%) 97 | 100 100 . 100 . 100 100 73 . . . . 100 . . . . Level 1 2 | . . . . . . . 26 . . . . . . . . . Level 2 . | . . . . . . . . . . . . . . . . . Level 3 . | . . . . . . . . . . . . . . . . . Level 4 . | . . . . . . . . . . . . . . . . . Level 5 . | . . . . . . . . . . . . . . . . . High Security . | . . . . . . . . . . . . . . . . . Max Security . | . . . . . . . . . . . . . . . . . Peak Influence 295 | 10 72 . 141 . 42 23 295 . . . . 72 . . . . Initial 141 | . . . 141 . . 10 . . . . . . . . . . Average 22 | 1 14 . 22 . 5 . 124 . . . . 16 . . . . Influence Increases 3436 | 40 487 365 293 . 184 42 577 355 . . 284 339 85 20 15 350 Destroy 0b10 Robot/C 1520 | . 220 80 40 . 100 . 160 200 . . 160 200 60 20 . 280 Destroy 0b10 Robot/NC 240 | 40 60 . 30 . 15 . 70 . . . . 10 . . 15 . Destroy Leader 284 | . 70 . . . 50 . 64 20 . . 10 50 10 . . 10 Allied During Kill 417 | . . . . . . . 180 135 . . 99 3 . . . . Successful Hack 82 | . 18 . 20 . . . 44 . . . . . . . . . Select Force Hacks 210 | . . . 180 . . . . . . . . 30 . . . . Disable Machine 120 | . 30 . 15 . . . 45 . . . . 30 . . . . Destroy Structure 113 | . 14 . 8 . 19 42 14 . . . . 16 . . . . Lose Combat Pursuer 450 | . 75 285 . . . . . . . . 15 . 15 . . 60 Influence Decreases 3424 | 40 487 70 588 . 153 73 300 406 226 . 284 328 81 35 15 338 Entered New Map 332 | . . . 154 . . 21 . 104 44 . . . 5 4 . . Time Decay 2765 | 40 487 60 414 . 143 40 290 262 182 . 244 251 60 31 15 246 Lost Part 227 | . . 10 20 . 10 12 . . . . . 67 16 . . 92 Lost Ally 100 | . . . . . . . 10 40 . . 40 10 . . . . Squads Dispatched 20 | . 3 . . . 3 . 6 . . . . 7 . . . 1 Investigation 2 | . 1 . . . . . . . . . . 1 . . . . Extermination 7 | . . . . . 2 . 2 . . . . 3 . . . . Reinforcement 7 | . 2 . . . 1 . 1 . . . . 3 . . . . Assault 1 | . . . . . . . . . . . . . . . . 1 Garrison 3 | . . . . . . . 3 . . . . . . . . . Intercept . | . . . . . . . . . . . . . . . . . Searches Triggered . | . . . . . . . . . . . . . . . . . Construction Impeded . | . . . . . . . . . . . . . . . . . Haulers Reinforced 1 | . . . . . . . 1 . . . . . . . . . Active Scanning Responses . | . . . . . . . . . . . . . . . . . Cargo Convoy Interrupts 1 | . . . . . . . . . . . . 1 . . . . Stealth | -11 -10 -10 -8 -8 -6 -6 -6 -6 -6 -6 -5 -5 -5 -5 -5 -4 --------- Run | Yrd Mat Sub Rec Scr Fac Was Fac Low Low Dat Pro Fac Upp Upp Zhi Pro Distress Signals 3 | . 1 . . . . . . . . . . 2 . . . . Communications Jammed 1 | . . . . . . . 1 . . . . . . . . . Distress Signals . | . . . . . . . . . . . . . . . . . Times Spotted 168 | . 29 30 3 14 7 6 8 11 4 . 8 12 4 1 . 31 Peak Tracking Total 8 | . 3 2 2 5 3 2 3 3 4 . 5 3 3 1 . 8 Tactical Retreats 14 | . 4 4 . . . . . . . . 1 . 1 . . 4 Traps | -11 -10 -10 -8 -8 -6 -6 -6 -6 -6 -6 -5 -5 -5 -5 -5 -4 ------- Run | Yrd Mat Sub Rec Scr Fac Was Fac Low Low Dat Pro Fac Upp Upp Zhi Pro Traps Triggered 7 | . 1 1 . . 2 . 1 . . . . 1 . 1 . . Indirectly . | . . . . . . . . . . . . . . . . . Trap Hack Attempts . | . . . . . . . . . . . . . . . . . Triggered . | . . . . . . . . . . . . . . . . . Disarmed 3 | . 3 . . . . . . . . . . . . . . . Reprogrammed . | . . . . . . . . . . . . . . . . . Reused . | . . . . . . . . . . . . . . . . . Traps Extracted . | . . . . . . . . . . . . . . . . . Installed . | . . . . . . . . . . . . . . . . . Triggered . | . . . . . . . . . . . . . . . . . Most Traps Carried 1 | . . 1 . . . . . . . . . . . . . . Machines | -11 -10 -10 -8 -8 -6 -6 -6 -6 -6 -6 -5 -5 -5 -5 -5 -4 ---------- Run | Yrd Mat Sub Rec Scr Fac Was Fac Low Low Dat Pro Fac Upp Upp Zhi Pro Machines Disabled 17 | . 2 1 1 7 . . 3 . . . . 2 . 1 . . Max in Single Turn 1 | . 1 1 1 1 . . 1 . . . . 1 . 1 . . Garrison Access 1 | . . . . . . . 1 . . . . . . . . . Machines Repaired . | . . . . . . . . . . . . . . . . . Machines Dismantled . | . . . . . . . . . . . . . . . . . Machines Sabotaged . | . . . . . . . . . . . . . . . . . Overloaded Fab Kills . | . . . . . . . . . . . . . . . . . Hacking | -11 -10 -10 -8 -8 -6 -6 -6 -6 -6 -6 -5 -5 -5 -5 -5 -4 --------- Run | Yrd Mat Sub Rec Scr Fac Was Fac Low Low Dat Pro Fac Upp Upp Zhi Pro Machines Accessed 53 | . 9 1 12 3 10 . 8 . 2 3 . 4 . 1 . . Terminals 21 | . 6 . 5 . 5 . 4 . . . . 1 . . . . Fabricators 3 | . . . . . 2 . 1 . . . . . . . . . Repair Stations 2 | . 1 . . . . . . . . . . 1 . . . . Recycling Units 14 | . 2 . 7 . 2 . 2 . . . . 1 . . . . Scanalyzers 2 | . . . . . 1 . . . . . . 1 . . . . Garrison Access 1 | . . . . . . . 1 . . . . . . . . . Total Hacks 138 | . 28 4 31 6 17 . 15 . 8 19 . 9 . 1 . . Successful 78 | . 15 4 17 6 2 . 4 . 8 19 . 2 . 1 . . Failed 60 | . 13 . 14 . 15 . 11 . . . . 7 . . . . Catastrophic 11 | . 1 . 1 . 6 . 1 . . . . 2 . . . . Database Lockouts . | . . . . . . . . . . . . . . . . . Manual 48 | . 14 . 22 . 5 . 4 . . . . 3 . . . . Terminals 52 | . 18 . 14 . 11 . 8 . . . . 1 . . . . Fabricators 4 | . . . . . 2 . 2 . . . . . . . . . Repair Stations 9 | . 4 . . . . . . . . . . 5 . . . . Recycling Units 30 | . 6 . 17 . 3 . 3 . . . . 1 . . . . Scanalyzers 3 | . . . . . 1 . . . . . . 2 . . . . Garrison Access 2 | . . . . . . . 2 . . . . . . . . . Terminal Hacks 48 | . 5 4 2 6 . . 3 . 8 19 . . . 1 . . Record 20 | . . 4 . 5 . . . . 7 4 . . . . . . Part Schematic 8 | . . . . . . . . . . 8 . . . . . . Robot Schematic 4 | . . . . . . . . . . 4 . . . . . . Robot Analysis 1 | . 1 . . . . . . . . . . . . . . . Prototype ID Bank 3 | . . . . . . . . . . 3 . . . . . . Open Door 3 | . . . . 1 . . . . 1 . . . . 1 . . Branch Access Points 1 | . . . . . . . 1 . . . . . . . . . Emergency Access Points 1 | . . . . . . . 1 . . . . . . . . . Terminal Index 2 | . 1 . 1 . . . . . . . . . . . . . Locate Traps 1 | . 1 . . . . . . . . . . . . . . . Disarm Traps 1 | . 1 . . . . . . . . . . . . . . . Registered Components 1 | . 1 . . . . . . . . . . . . . . . Zone Layout 2 | . . . 1 . . . 1 . . . . . . . . . Fabricator Hacks . | . . . . . . . . . . . . . . . . . Repair Station Hacks 5 | . 4 . . . . . . . . . . 1 . . . . Scan Component 3 | . 2 . . . . . . . . . . 1 . . . . Repair 2 | . 2 . . . . . . . . . . . . . . . Recycling Unit Hacks 7 | . . . 6 . 1 . . . . . . . . . . . Retrieve Components 7 | . . . 6 . 1 . . . . . . . . . . . Scanalyzer . | . . . . . . . . . . . . . . . . . Garrison Access Hacks 1 | . . . . . . . 1 . . . . . . . . . Seal Access 1 | . . . . . . . 1 . . . . . . . . . Unauthorized Hacks 17 | . 6 . 9 . 1 . . . . . . 1 . . . . Terminals 10 | . 6 . 3 . 1 . . . . . . . . . . . Botnet 5 | . 2 . 2 . 1 . . . . . . . . . . . Disrupt 1 | . . . 1 . . . . . . . . . . . . . Skim 4 | . 4 . . . . . . . . . . . . . . . Fabricators . | . . . . . . . . . . . . . . . . . Repair Stations . | . . . . . . . . . . . . . . . . . Recycling Units 6 | . . . 6 . . . . . . . . . . . . . Tunnel 6 | . . . 6 . . . . . . . . . . . . . Scanalyzers 1 | . . . . . . . . . . . . 1 . . . . Extract 1 | . . . . . . . . . . . . 1 . . . . Garrison Access . | . . . . . . . . . . . . . . . . . Data Cores Recovered 1 | . . . . . . . 1 . . . . . . . . . Used 1 | . . . . . . . 1 . . . . . . . . . Hacking Detections 35 | . 7 . 8 . 9 . 7 . . . . 4 . . . . Full Trace Events 1 | . . . 1 . . . . . . . . . . . . . Feedback Events . | . . . . . . . . . . . . . . . . . Feedback Blocked . | . . . . . . . . . . . . . . . . . Robot Schematics Acquired 4 | . . . . . . . . . . 4 . . . . . . Robots Built . | . . . . . . . . . . . . . . . . . Authchips . | . . . . . . . . . . . . . . . . . Time . | . . . . . . . . . . . . . . . . . Total Robot Build Rating . | . . . . . . . . . . . . . . . . . Part Schematics Acquired 10 | . . . . . . . . . . 8 . 2 . . . . Parts Built . | . . . . . . . . . . . . . . . . . Authchips . | . . . . . . . . . . . . . . . . . Time . | . . . . . . . . . . . . . . . . . Total Part Build Rating . | . . . . . . . . . . . . . . . . . Part Studies Acquired . | . . . . . . . . . . . . . . . . . Parts Repaired 2 | . 2 . . . . . . . . . . . . . . . Time 52 | . 52 . . . . . . . . . . . . . . . Parts Recycled . | . . . . . . . . . . . . . . . . . Recycled Matter . | . . . . . . . . . . . . . . . . . Retrieved Matter . | . . . . . . . . . . . . . . . . . Retrieved Components 23 | . . . 20 . 3 . . . . . . . . . . . Parts Scanalyzed . | . . . . . . . . . . . . . . . . . Part Schematics Acquired . | . . . . . . . . . . . . . . . . . Parts Damaged . | . . . . . . . . . . . . . . . . . Bothacking | -11 -10 -10 -8 -8 -6 -6 -6 -6 -6 -6 -5 -5 -5 -5 -5 -4 ------------ Run | Yrd Mat Sub Rec Scr Fac Was Fac Low Low Dat Pro Fac Upp Upp Zhi Pro Used RIF Installer . | . . . . . . . . . . . . . . . . . Robots Hacked . | . . . . . . . . . . . . . . . . . Non-combat . | . . . . . . . . . . . . . . . . . Combat . | . . . . . . . . . . . . . . . . . Robot Hacks Applied . | . . . . . . . . . . . . . . . . . Relay Couplers Released . | . . . . . . . . . . . . . . . . . Fabnet Peak Effective % . | . . . . . . . . . . . . . . . . . Robots Rewired 3 | . . . . . . . . 3 . . . . . . . . Allies Hacked 1 | . . . . . . . 1 . . . . . . . . . Hacks Repelled . | . . . . . . . . . . . . . . . . . Allies | -11 -10 -10 -8 -8 -6 -6 -6 -6 -6 -6 -5 -5 -5 -5 -5 -4 -------- Run | Yrd Mat Sub Rec Scr Fac Was Fac Low Low Dat Pro Fac Upp Upp Zhi Pro Total Allies 25 | . . . . . . 20 . 3 2 . . . . . . . Largest Group 19 | . . . . . . 19 7 9 9 7 7 5 . . . . Highest-Rated Group 684 | . . . . . . 684 284 344 331 269 269 175 . . . . Highest-Rated Ally 50 | . . . . . . 50 46 46 46 46 46 46 . . . . Initial UFD Resources 27 | . . . . . 22 22 22 22 22 22 25 25 25 25 25 27 Total Orders . | . . . . . . . . . . . . . . . . . Ally Attacks 160 | . . . . . . 9 44 55 2 . 43 7 . . . . Total Damage 3528 | . . . . . . 169 1135 1350 63 . 721 90 . . . . Kills 23 | . . . . . . . 7 10 . . 6 . . . . . Allies Corrupted 1 | . . . . . . . 1 . . . . . . . . . Allies Melted 5 | . . . . 5 . . . . . . . . . . . . Intel | -11 -10 -10 -8 -8 -6 -6 -6 -6 -6 -6 -5 -5 -5 -5 -5 -4 ------- Run | Yrd Mat Sub Rec Scr Fac Was Fac Low Low Dat Pro Fac Upp Upp Zhi Pro Active Infowar (turns) 13944 | 109 2836 2891 . . 1268 620 890 574 499 114 658 1055 674 1092 240 424 Sensors 6577 | . . . . . 1262 620 888 451 450 . 504 553 650 1058 141 . Seismic 6441 | 109 2836 2891 . . 605 . . . . . . . . . . . T.N.C. 2708 | . . . . . . . 402 574 499 114 658 461 . . . . Jamming 4082 | . . . . . . . 343 . 130 114 395 670 674 1092 240 424 ECM 1 | . . . . . . . 1 . . . . . . . . . Robot Analysis Total 1 | . 1 . . . . . . . . . . . . . . . Derelict Logs Recovered 15 | . . 2 . 3 . . . . 2 . 3 . 1 2 . 2 Drone Launches . | . . . . . . . . . . . . . . . . . Drone Recoveries . | . . . . . . . . . . . . . . . . . Exploration | -11 -10 -10 -8 -8 -6 -6 -6 -6 -6 -6 -5 -5 -5 -5 -5 -4 ------------- Run | Yrd Mat Sub Rec Scr Fac Was Fac Low Low Dat Pro Fac Upp Upp Zhi Pro Turns Passed 26034 | 258 3100 6374 2066 4880 1362 1244 890 574 499 114 658 1055 706 1092 240 922 Spaces Moved 11777 | 113 1292 2082 636 2030 698 759 604 361 378 82 495 670 460 586 142 389 Core 9 | 6 . . . . . . . . . . . . . . . 3 Treads 3581 | 107 259 760 606 1052 689 64 . 1 . . . 5 . . . 38 Legs 4815 | . . . . . . 695 604 360 378 82 495 665 460 586 142 348 Wheels 3372 | . 1033 1322 30 978 9 . . . . . . . . . . . Hover . | . . . . . . . . . . . . . . . . . Flight . | . . . . . . . . . . . . . . . . . Fastest Speed 50 | 50 160 175 175 130 130 122 122 122 122 122 122 122 126 130 133 120 Average Speed 182 | 154 190 233 313 229 161 131 122 122 122 122 122 124 129 131 133 140 Slowest Speed 550 | 160 215 480 320 480 162 240 122 400 122 122 122 240 130 133 133 550 Overloaded Moves . | . . . . . . . . . . . . . . . . . Propulsion Burnouts . | . . . . . . . . . . . . . . . . . Robots Hopped . | . . . . . . . . . . . . . . . . . Potential Cave-ins . | . . . . . . . . . . . . . . . . . Cave-ins Triggered . | . . . . . . . . . . . . . . . . . Teleports 1 | . . . . . . . . . . . . . . . . 1 Exploration Rate (%) 58 | 5 99 97 89 85 20 95 21 49 63 70 77 13 59 69 56 35 Regions Visited 16 Branch Regions 11 Pre-discovered Areas 14 | . . 2 6 1 . . . . . 1 1 . 1 . . 2 Known Exits Taken 9 | . . . . . . . 1 1 1 1 1 1 1 1 1 . Unknown Exits Taken 5 | 1 1 1 1 1 . . . . . . . . . . . . Scrap Searched 37 | . . 9 . 5 . . . 10 4 . 1 . 2 3 . 3 Spaces Dug 110 | . 1 . . 5 17 . 14 26 . . 6 8 2 30 . 1 Terrain Destroyed 360 | . 12 . 7 44 19 82 14 26 . . 31 8 38 69 . 10 Melee 99 | . . . . 2 17 . 14 26 . . 6 8 2 23 . 1 Projectile 80 | . 3 . 3 10 2 . . . . . . . 7 46 . 9 AOE 181 | . 9 . 4 32 . 82 . . . . 25 . 29 . . . Terrain Rammed . | . . . . . . . . . . . . . . . . . Walls Destroyed . | . . . . . . . . . . . . . . . . . Machines Disabled . | . . . . . . . . . . . . . . . . . Actions | -11 -10 -10 -8 -8 -6 -6 -6 -6 -6 -6 -5 -5 -5 -5 -5 -4 --------- Run | Yrd Mat Sub Rec Scr Fac Was Fac Low Low Dat Pro Fac Upp Upp Zhi Pro Total 15181 | 149 1838 3420 684 2221 860 901 694 441 395 96 535 791 525 808 175 648 Wait 2129 | . 419 1185 9 85 53 22 21 7 . 15 24 22 9 119 1 138 Move 11762 | 112 1291 2081 635 2029 698 758 603 360 377 81 494 669 459 585 141 389 Hop . | . . . . . . . . . . . . . . . . . Pick Up 144 | 7 31 11 5 27 18 8 13 3 . . . 9 1 5 3 3 Fast Attach 51 | 7 4 . . 2 4 9 4 3 . . 1 3 . 3 5 6 Attach 56 | . 1 4 3 3 9 8 . 1 . . 1 9 6 1 1 9 Detach 14 | . 1 . 2 . . 3 . . . . 1 2 4 . . 1 Swap 131 | 1 11 50 4 15 13 6 5 4 3 . 4 4 2 4 3 2 Drop 112 | . 15 14 5 26 14 6 7 6 1 . 1 2 . 4 8 3 Fire 402 | 22 65 75 21 26 4 57 . . . . 3 2 25 61 . 41 Melee 356 | . . . . 8 47 24 41 34 14 . 6 69 19 26 13 55 Ram . | . . . . . . . . . . . . . . . . . Kick 1 | . . . . . . . . . . . . . . . . 1 Crush . | . . . . . . . . . . . . . . . . . Escape Stasis . | . . . . . . . . . . . . . . . . . Rewire 23 | . . . . . . . . 23 . . . . . . . . Trap . | . . . . . . . . . . . . . . . . . Miscellaneous . | . . . . . . . . . . . . . . . . . Route ------- -11/Scrapyard -10/Materials (discovered 5 exits: [*Mat x3] / [*Min] / *Sub) -10/Subcaves (discovered 3 exits: [*Mat x2] / *Rec) -8/Recycling (discovered 2 exits: *Fac / *Scr) -8/Scraptown (discovered 2 exits: *Fac x2) -6/Factory -6/Waste -6/Factory (discovered 2 exits: *Low x2) -6/Lower Caves -6/Lower Caves (discovered 2 exits: *Fac / *Dat) -6/Data Miner -5/Proximity Caves -5/Factory (discovered 4 exits: *Fac x2 / *Upp x2) -5/Upper Caves -5/Upper Caves (discovered 2 exits: Fac / *Zhi) -5/Zhirov -4/Proximity Caves History --------- Turn | Location | Event 4 | -11/Scrapyard | Discovered new exit (range 14) 259 | -11/Scrapyard | Entered Materials 317 | -10/Materials | Build established: Mutant 953 | -10/Materials | Discovered new exit (range 5) 1129 | -10/Materials | Discovered new exit (range 13) 1483 | -10/Materials | Discovered new exit (range 10) 2134 | -10/Materials | Discovered new exit (range 6) 2369 | -10/Materials | Discovered new exit (range 16) 2499 | -10/Materials | Repaired Lgt. Treads 2527 | -10/Materials | Repaired Lgt. Treads 3359 | -10/Materials | Entered Subcaves 4803 | -10/Subcaves | A swath of the cavern ceiling suddenly collapsed 4825 | -10/Subcaves | Learned location of Zion (-7) 4825 | -10/Subcaves | Met a Zionite searching for "candidates" 5364 | -10/Subcaves | Discovered new exit (range 10) 5420 | -10/Subcaves | Discovered new exit (range 13) 5571 | -10/Subcaves | Shifting Twisted Machinery released Battle Cannon 5665 | -10/Subcaves | Lost 3 parts (1u2w) 5896 | -10/Subcaves | A swath of the cavern ceiling suddenly collapsed 6048 | -10/Subcaves | Visited Clippyterm 6053 | -10/Subcaves | Learned location of Section 7 (-3) 6475 | -10/Subcaves | Visited 4L-MR0's lab 6506 | -10/Subcaves | Found Prototype Leg 6514 | -10/Subcaves | Found Prototype Special Melee Weapon 6755 | -10/Subcaves | Curiously followed by a Cobbler waking with a query about "LVR3C" 7049 | -10/Subcaves | Shifting Twisted Machinery released Mak. Axe 7162 | -10/Subcaves | Disturbed a concealed Subdweller 7337 | -10/Subcaves | Ambushed by Subdwellers from Twisted Machinery 7552 | -10/Subcaves | Learned location of 2 exits from Materials 7822 | -10/Subcaves | Shifting Twisted Machinery released Sub. Laser 7901 | -10/Subcaves | Shifting Twisted Machinery released Battle Cannon 7901 | -10/Subcaves | Discovered new exit (range 11) 9733 | -10/Subcaves | Entered Recycling 10238 | -8/Recycling | Core integrity fell below 50% 10755 | -8/Recycling | Discovered new exit (range 6) 11690 | -8/Recycling | Scanned before Scraplab entrance 11739 | -8/Recycling | System corruption reached 10% 11781 | -8/Recycling | Entered Scraplab 11795 | -8/Recycling | Discovered new exit (range 3) 11799 | -8/Recycling | Entered Scraptown 11799 | -8/Scraptown | System corruption cleaned by C-Scrubber 11846 | -8/Scraptown | System corruption cleaned by C-Scrubber 11874 | -8/Scraptown | System corruption cleaned by C-Scrubber 11882 | -8/Scraptown | System corruption cleaned by C-Scrubber 12237 | -8/Scraptown | Visited Comm Corps 12314 | -8/Scraptown | Visited Spacefarers 12339 | -8/Scraptown | Visited Awakened 12384 | -8/Scraptown | Visited Bundlers 12582 | -8/Scraptown | Visited CPS Storage 12643 | -8/Scraptown | Visited Cyclists 12822 | -8/Scraptown | Scanned Subdweller tech in exchange for log data 12832 | -8/Scraptown | Learned Factory emergency access door positions 12835 | -8/Scraptown | Learned 12 Research zone layouts 12838 | -8/Scraptown | Learned location of Testing (-2) 12877 | -8/Scraptown | Discovered new exit (range 11) 13347 | -8/Scraptown | Visited CR-KLE's Repair Center 13386 | -8/Scraptown | Visited UFD Registry 13386 | -8/Scraptown | Registered with UFD as "Nanoeater" 13441 | -8/Scraptown | Visited Science Guys 13469 | -8/Scraptown | Visited Derelict Rescue Squad 13497 | -8/Scraptown | Visited A0-MCA Data Center 13525 | -8/Scraptown | Visited Modified Component R&D 13560 | -8/Scraptown | Visited Scrapoid Research Area 13590 | -8/Scraptown | Visited Infowarlord's Domain 13616 | -8/Scraptown | Visited Curators Association 13685 | -8/Scraptown | Visited Scrap Suit Storage 13711 | -8/Scraptown | Visited Abandonware Association 13728 | -8/Scraptown | Learned abandonware demo "REVENGE.EXE" 13756 | -8/Scraptown | Learned abandonware demo "OVRCLOCK.EXE" 13791 | -8/Scraptown | Visited Sword Containment 14031 | -8/Scraptown | Delivered Scrap Shield to a Scientist 14417 | -8/Scraptown | Found Exp. Signal Interpreter 14736 | -8/Scraptown | Given a B+ rating by A0-MCA 14743 | -8/Scraptown | Found A0-MCA's Component Scanner 15140 | -8/Scraptown | Build established: Scavenger-Mutant 15737 | -8/Scraptown | Found Prototype Slashing Weapon 16056 | -8/Scraptown | Entered Cyclist Reading Room 16249 | -8/Scraptown | Met Optimus 16249 | -8/Scraptown | Accepted into 0bPrime 16331 | -8/Scraptown | Civil war broke out across Scraptown 16410 | -8/Scraptown | Identified Companion Sword 16431 | -8/Scraptown | Build established: Mutant 16433 | -8/Scraptown | Found Deploy-a-Sentry 16434 | -8/Scraptown | Lost 12 allies 16459 | -8/Scraptown | Found Surveybot 24 Chip 16635 | -8/Scraptown | Lost 3 allies 16654 | -8/Scraptown | Discovered new exit (range 5) 16679 | -8/Scraptown | Entered Factory 16679 | -6/Factory | Evolved 8 slots: Propulsion x4, Utility x4 17551 | -6/Factory | Build established: Scavenger-Mutant 18041 | -6/Factory | Sucked down chute 18041 | -6/Factory | Entered Waste 18042 | -6/Waste | Met a frightened Derelict 18083 | -6/Waste | Spotted C-40 Crusher 18104 | -6/Waste | Destroyed C-40 Crusher 18105 | -6/Waste | Spotted C-40 Crusher 18109 | -6/Waste | Spotted C-40 Crusher 18113 | -6/Waste | Destroyed C-40 Crusher 18115 | -6/Waste | Destroyed C-40 Crusher 18152 | -6/Waste | Spotted C-40 Crusher 18154 | -6/Waste | Spotted C-40 Crusher 18169 | -6/Waste | Crushed by Compactor (1 part destroyed, 1 dropped) 18172 | -6/Waste | Crushed by Compactor (1 part destroyed, 2 dropped) 18174 | -6/Waste | Identified Cargo Legs 18175 | -6/Waste | Attached Cargo Legs, gained temporary slots: Utility x2 18203 | -6/Waste | Lost 4 parts (1p2n1w) 18215 | -6/Waste | Destroyed C-40 Crusher 18242 | -6/Waste | Spotted C-40 Crusher 18249 | -6/Waste | Build established: Mutant 18272 | -6/Waste | Crushed by Compactor (1 part destroyed, 1 dropped) 18436 | -6/Waste | Destroyed C-40 Crusher 18625 | -6/Waste | Destroyed C-40 Crusher 18738 | -6/Waste | Warlord forces began an assault 18764 | -6/Waste | Discovered new exit (range 12) 18846 | -6/Waste | Murdered 7 allies 18891 | -6/Waste | Murdered 3 allies 19201 | -6/Waste | Identified exit to Factory 19285 | -6/Waste | Entered Factory 19285 | -6/Factory | Accompanied by 7 allies 19303 | -6/Factory | Identified exit to Lower Caves 19446 | -6/Factory | Build established: Scavenger-Mutant 19532 | -6/Factory | Garrison activated, responded to threat 20060 | -6/Factory | Build established: Scavenger-Assassin 20175 | -6/Factory | Entered Lower Caves 20175 | -6/Lower Caves | Accompanied by 6 allies 20177 | -6/Lower Caves | UFD Scientist delivered a prototype 20192 | -6/Lower Caves | Found Prototype Protection 20363 | -6/Lower Caves | Encountered a Warlord checkpoint 20587 | -6/Lower Caves | Attacked by a delusional Derelict stockpiling Unaware 20660 | -6/Lower Caves | Attracted the attention of an 0b10 checkpoint 20686 | -6/Lower Caves | Discovered new exit (range 5) 20741 | -6/Lower Caves | Identified exit to Lower Caves 20749 | -6/Lower Caves | Entered another Lower Caves area 20749 | -6/Lower Caves | Accompanied by 7 allies 20763 | -6/Lower Caves | Learned Extension security intel 20763 | -6/Lower Caves | Learned Armory terminal intel 20763 | -6/Lower Caves | Learned Extension garrison access intel 20764 | -6/Lower Caves | A Commander dispatched an escort 20818 | -6/Lower Caves | Discovered new exit (range 7) 20819 | -6/Lower Caves | Encountered a Warlord checkpoint 20824 | -6/Lower Caves | Learned Factory stockpile data 20853 | -6/Lower Caves | Identified exit to Factory 21069 | -6/Lower Caves | Learned Factory terminal intel 21173 | -6/Lower Caves | Discovered new exit (range 10) 21204 | -6/Lower Caves | Ambushed by wild Derelicts 21247 | -6/Lower Caves | Identified exit to Data Miner 21248 | -6/Lower Caves | Entered Data Miner 21248 | -6/Data Miner | Accompanied by 9 allies 21248 | -6/Data Miner | Discovered new exit (range 6) 21249 | -6/Data Miner | Commander's escort returned to base 21249 | -6/Data Miner | Commander's escort returned to base 21272 | -6/Data Miner | Met Data Miner 21299 | -6/Data Miner | Acquired the access code to Warlord's prototype stash 21319 | -6/Data Miner | Received God Mode back door access code from Data Miner 21346 | -6/Data Miner | Identified exit to Proximity Caves 21362 | -6/Data Miner | Entered Proximity Caves 21362 | -5/Proximity Caves | Accompanied by 7 allies 21639 | -5/Proximity Caves | Learned location of Warlord (-4) 21641 | -5/Proximity Caves | Learned 4 Factory zone layouts 21726 | -5/Proximity Caves | Attracted the attention of an 0b10 checkpoint 22020 | -5/Proximity Caves | Entered Factory 22020 | -5/Factory | Accompanied by 5 allies 22020 | -5/Factory | Evolved 2 slots: Utility x2 22021 | -5/Factory | Identified exit to Factory 22021 | -5/Factory | Identified exit to Upper Caves 22023 | -5/Factory | Loaded intel: 26 terminal locations 22099 | -5/Factory | Lost 3 allies 22144 | -5/Factory | Discovered exit to Factory (range 15) 22288 | -5/Factory | Discovered exit to Upper Caves (range 13) 22519 | -5/Factory | Lost 5 parts (2n3u) 22646 | -5/Factory | Identified Enh. Scrap Shield 22720 | -5/Factory | Lost 3 parts (2n1u) 22750 | -5/Factory | System corruption reached 10% 23000 | -5/Factory | Cargo convoy interrupted 23075 | -5/Factory | Entered Upper Caves 23128 | -5/Upper Caves | Lost 3 parts (1p1n1w) 23229 | -5/Upper Caves | Build established: Mutant 23360 | -5/Upper Caves | Encountered a Warlord checkpoint 23697 | -5/Upper Caves | Spotted B-75 Beast 23776 | -5/Upper Caves | Discovered new exit (range 2) 23777 | -5/Upper Caves | Identified exit to Upper Caves 23781 | -5/Upper Caves | Entered another Upper Caves area 23973 | -5/Upper Caves | Attracted the attention of an 0b10 checkpoint 24168 | -5/Upper Caves | Found Alien Artifact 24373 | -5/Upper Caves | Found DCF Scrap (14 items) 24587 | -5/Upper Caves | Learned Factory terminal intel 24698 | -5/Upper Caves | Build established: Derelict-Mutant 24836 | -5/Upper Caves | Discovered new exit (range 16) 24872 | -5/Upper Caves | Identified exit to Zhirov 24873 | -5/Upper Caves | Entered Zhirov 24875 | -5/Zhirov | Discovered new exit (range 3) 24899 | -5/Zhirov | Met Zhirov 24930 | -5/Zhirov | Found Alien Artifact 24930 | -5/Zhirov | Identified Integrated Reactor 24930 | -5/Zhirov | Installed Integrated Reactor, increased core energy generation (+10) 25062 | -5/Zhirov | Found Alien Artifact 25112 | -5/Zhirov | Identified exit to Proximity Caves 25113 | -5/Zhirov | Entered Proximity Caves 25141 | -4/Proximity Caves | Learned location of Quarantine (-3) 25213 | -4/Proximity Caves | Attracted the attention of an 0b10 checkpoint 25444 | -4/Proximity Caves | Spotted B-86 Titan 25511 | -4/Proximity Caves | Attracted the attention of an 0b10 outpost 25613 | -4/Proximity Caves | Identified Transdimensional Reconstructor 25613 | -4/Proximity Caves | Warped through subspace 25644 | -4/Proximity Caves | Lost 9 parts (1p4n4u) 25749 | -4/Proximity Caves | Identified Dimensional Node Initializer 25749 | -4/Proximity Caves | Initialized slip node 25924 | -4/Proximity Caves | Core integrity fell below 50% 25986 | -4/Proximity Caves | Core integrity fell below 20% 26006 | -4/Proximity Caves | Lost 9 parts (1p5n3u) 26035 | -4/Proximity Caves | Destroyed by H-77 Assassin with High-powered Shotgun Last Messages --------------- 25994_ System corrupted: Com. Ion Cannon failed to cycle. 25995_ Penetrated by Slug. 25997_ System corrupted: Matter fused (-9). 25998_ Slug penetrates Wall. 26004_ Acquired 5 matter. 26012_ System corrupted: Substantial component data lost. 26014_ S-27 Virus destroyed. 26018_ Slug penetrates Wall. 26018_ Penetrated by Slug. Companion Sword: "Do we really need this Com. Ion Cannon around? It should just be you and me." 26024_ Adv. Thermal Shield destroyed. 26029_ Penetrated by Slug. 26029_ Slug penetrates Wall. 26029_ Penetrated by Slug. 26029_ Slug penetrates Wall. 26035_ Penetrated by Slug. Map ----- +----------------------------------------------------+ | # #?? ## ######## #??????????????????????? | | # #?####?### ??????## ##??????????????????????? | | #%######???# ##### ##??????????????????????? | | #???# ##?????????????????????? | | #??# #?????????????????????? | | ##### ### ##????????????????????? | | ????? ###??# ##???????????????????? | | ??????##### #?????## ##??????????????????? | | ??????????? ##?????# #??????????????????? | | ???????????? ???????## ##??????????????????? | | ????????????????????# ####???????????????????? | | ????????????????????# ##?????????????????????? | | ????????????????????# #?????????????????????? | | ????????????????????# #?????????????????????? | | ????????????????????# #?????????????????????? | | ????????????????????## #??####?????????? ????? | | ?????????????????????# #?## ######???? ????? | | ?????????????????????## #### #"# #### ?????? | | ??????????????????????###%%%= #???? | | ???????????????????????#;%####### #?????? | | ???????????????????????## #""""# #####?????? | | ????????????????????????# #" # ##???????? | | ????????????????????????# # ####????? | | ????????????????????????#h# ## ?? | | ???????????????????????## #" # ? | | ???????????????????????#;@#""""# ? | | ???????????????????????## ;;##### ? | | ????????????????????????# % ? | | ????????????????????????###;; % ##### ?? | | ??????????????????????????## #???????? | | ??????????????????????????# ;; ! #???????? | | ??????????????????????????# ;## !% #???????? | | ??????????????????????????## ###### #???????? | | ??????????????????????####### ##??? #???????? | | ????????????????????### ## # ##??? #???????? | | ????????????????????# ## ### ##??? ???????? | | ???????????????????##### # #???? ??????? | | ???????????????????# # # #???? ?????? | | ???????????????????# # ####???????????? | | ???????????????????# ##??????????????? | | ???????????????????# ###???????????????? | | ???????????????????# #?????????????????? | | ???????????????????# #?????????????????? | | ???????????????????# ###????????????????? | | ???????????????????# #"#????????????????? | | ???????????????????## ###" % #?????????????????? | | ????????????????????## ##?### "#????????????????? | | ?????????????????????###????#####????????????????? | | ?????????????????????????????????????????????????? | | ?????????????????????????????????????????????????? | +----------------------------------------------------+ Best States ------------- Heat Dissipation 73 Energy Generation 31 Energy Capacity 810 Matter Stores 300 Matter Capacity 300 Sight Range 16 Robot Scan Range 16 Terrain Scan Density 10 Jamming Range 14 Armor Coverage 1025 Resistance: TH 30 Resistance: EX 50 Weapon Cycling 20 Evasion (%) 55 Core Analysis 6 Recoil Reduction 5 Offensive Hacking 10 Item Schematics ----------------- Combat Drone Bay | -6/Data Miner | Free Lgt. Regenerative Plating | -6/Data Miner | Free Cld. Nuclear Pulse Thruster | -6/Data Miner | Free Imp. Matter Compressor | -6/Data Miner | Free Neutron Cannon | -6/Data Miner | Free Adv. Coolant Injector | -6/Data Miner | Free Centrium Wheel | -6/Data Miner | Free Hvy. Disruptor Cannon | -6/Data Miner | Free Imp. Datajack | -5/Factory | Extracted Hpw. Shock Rifle | -5/Factory | Extracted Robot Schematics ------------------ R-10 Processor | -6/Data Miner | Free P-70 Sage | -6/Data Miner | Free A-15 Conveyor | -6/Data Miner | Free B-48 Gladiator | -6/Data Miner | Free Fabricated ------------ Nothing Repaired ---------- Lgt. Treads | 19% | -10/Materials Lgt. Treads | 30% | -10/Materials Studied --------- None Alien Tech Used ----------------- Integrated Reactor Transdimensional Reconstructor Dimensional Node Initializer Achievements -------------- None Challenges ------------ None Game ------ Seed GaussCorruptionPower Manual? 0 Play Time 02:26:22 Cumulative 422.7 hours Start 2026.04.12 @ 11:57:52 End 2026.04.12 @ 19:42:11 Sessions 3 Manual Loads 0 Difficulty Rogue Special Mode None Game No. 115 Rogue 109 Adventurer 0 Explorer 6 Win Type - Total 28 Types 14/1/6/1/1/0/2/1/1/1 Lore% 90 Gallery% 78 Achievement% 76 Wizard Run 0 Options --------- Layout 1 ASCII 0 Keyboard 0 Movement Mouse Keybinds 0 Fullscreen 2 Font 24/Smallcaps Map View 50x35 Zoom Use 0% Tactical HUD 1 Map Filters NONE Filters NONE Steam 1 RUN: 668b3b94-1745-463a-b337-659749fc9967